Cogmind - Beta 16 @@@ ROGUE MODE // 2025.10.21 @ 01:05:22 Player: alice_fexa Result: Destroyed by BO-UD5(R) with Subdweller Shrapnel Launcher Performance ------------- Evolutions (0) 0 Regions Visited (3) 600 Robots Destroyed (38) 190 Value Destroyed (700) 700 Prototype IDs (1) 20 Alien Tech Used (0) 0 Bonus (30) 30 TOTAL SCORE: 1540 Bonus ------- Follower Combat Kills 30 Cogmind --------- Core Integrity 0/250 Matter 296/300 Energy 250/250 System Corruption 0% Temperature Cool (0) Movement Treading (320) Ox2 Location -10/Subcaves Parts ------- > --- POWER (1) -------- Ion Engine > --- PROPULSION (2) --- Light Treads Wheel > --- UTILITY (2) ------ Improved Heat Sink High-capacity Storage Unit > --- WEAPON (2) ------- Beam Cannon Barrage Gun > --- INVENTORY (20) --- Light Ion Engine Light Deuterium Engine Wheel Improved Heat Sink Improved Heat Sink High-capacity Matter Pod (200) Experimental Sensor Array Improved Light Armor Plating Medium Laser Small Laser Small Laser Small Laser Assault Rifle Light Assault Rifle Light Assault Rifle Light Assault Rifle Light Assault Rifle Light Assault Rifle Mini Grenade Launcher Mini Grenade Launcher Peak State ------------ > --- POWER ------------ Ion Engine > --- PROPULSION ------- Light Treads Wheel > --- UTILITY ---------- High-capacity Storage Unit Experimental Sensor Array > --- WEAPON ----------- Medium Laser Beam Cannon > --- INVENTORY -------- Light Ion Engine Light Deuterium Engine Wheel Improved Heat Sink Improved Heat Sink Improved Heat Sink High-capacity Matter Pod Improved Light Armor Plating Small Laser Small Laser Small Laser Assault Rifle Light Assault Rifle Light Assault Rifle Light Assault Rifle Light Assault Rifle Light Assault Rifle Grenade Launcher Mini Grenade Launcher Mini Grenade Launcher [Rating: 18] Favorites ----------- Power Ion Engine Engine Ion Engine Propulsion Light Treads Treads Light Treads Wheel Wheel Utility Heat Sink Device Heat Sink Storage High-capacity Storage Unit Processor Targeting Computer Weapon Medium Laser Energy Gun Medium Laser Energy Cannon Beam Cannon Ballistic Gun Barrage Gun Launcher Grenade Launcher Build | -11 -10 -10 -10 ------- Run | Yrd Mat Min Sub Slots Evolved . | . . . . Power . | . . . . Propulsion . | . . . . Utility . | . . . . Weapon . | . . . . Parts Attached 23 | 7 9 6 1 Power 2 | 1 1 . . Engine 2 | 1 1 . . Core . | . . . . Reactor . | . . . . Propulsion 5 | 2 1 2 . Treads 2 | 1 . 1 . Leg . | . . . . Wheel 3 | 1 1 1 . Hover . | . . . . Flight . | . . . . Utility 8 | 2 4 2 . Device 5 | 1 2 2 . Storage 2 | 1 1 . . Processor 1 | . 1 . . Hackware . | . . . . Protection . | . . . . Artifact . | . . . . Weapon 8 | 2 3 2 1 Energy Gun 3 | 2 . 1 . Energy Cannon 2 | . 2 . . Ballistic Gun 1 | . . . 1 Ballistic Cannon . | . . . . Launcher 2 | . 1 1 . Special Weapon . | . . . . Impact Weapon . | . . . . Slashing Weapon . | . . . . Piercing Weapon . | . . . . Special Melee Weapon . | . . . . Unidentified Prototypes 1 | . . 1 . Parts Lost 6 | . 2 4 . Power 1 | . 1 . . Propulsion 3 | . 1 2 . Utility 1 | . . 1 . Weapon 1 | . . 1 . Highest Loss Streak 2 | . 2 2 . To Critical Strikes . | . . . . Average Backups 13 | 2 8 17 20 Power 1 | . 1 1 2 Propulsion 2 | 1 1 2 1 Utility 2 | . . 3 5 Weapon 7 | . 4 10 12 Tool/Special . | . . . . Unused Backups 23 | . 5 1 17 Power 4 | . 2 . 2 Propulsion 2 | . . 1 1 Utility 5 | . 1 . 4 Weapon 12 | . 2 . 10 Tool/Special . | . . . . Average Slot Usage (%) 99 | . 99 99 100 Engine 13 | . 13 14 14 Treads 13 | . 14 13 14 Wheel 13 | . 13 14 14 Device 13 | . 13 14 14 Storage 14 | . 14 14 14 Energy Gun 14 | . 16 14 8 Energy Cannon 12 | . 11 13 14 Peak Build Rating 18 | 7 8 18 14 Average Rating 8 | 5 7 9 12 On Entrance 6 | . 7 8 12 Avg Prop Armor Cover (%) 12 | 14 12 12 11 Naked Turns . | . . . . Heaviest Build 52 | 14 51 51 52 Greatest Support 16 | 16 16 10 10 Greatest Overweight (x) 5 | . 5 5 5 Average Overweight (x) 3 | . 1 4 5 Largest Inventory Capacity 20 | 8 20 20 20 Average Capacity 15 | 7 10 20 20 Most Carried 20 | 4 13 20 20 Average Carried 13 | 2 8 17 20 Final Capacity 20 | 8 20 20 20 Final Carried 20 | 4 13 20 20 Class Distribution -------------------- 100% | Mutant Dominant Class ---------------- Mutant | -10/Materials Mutant | -10/Mines Mutant | -10/Subcaves Resources | -11 -10 -10 -10 ----------- Run | Yrd Mat Min Sub Matter Collected 770 | 270 90 380 30 Remotely 187 | 187 . . . Salvage Created 1064 | 96 524 444 . Parts 65 | 1 37 27 . Haulers Intercepted 1 | . 1 . . Recyclers Shooed 1 | . 1 . . Parts Field Recycled . | . . . . Retrieved Matter . | . . . . Parts Self-Destructed . | . . . . Prevented . | . . . . Parts Restored . | . . . . Kills | -11 -10 -10 -10 ------- Run | Yrd Mat Min Sub Combat Hostiles Destroyed 26 | . 13 13 . Guns 8 | . 7 1 . Cannons 5 | . 3 2 . AOE 12 | . 3 9 . Classes Destroyed 9 | 1 8 . . Worker 2 | . 1 1 . Builder 2 | . 1 1 . Tunneler 1 | . 1 . . Hauler 1 | . 1 . . Recycler 3 | 1 . 2 . Operator 1 | . 1 . . Watcher 2 | . 2 . . Swarmer 15 | . 6 9 . Grunt 11 | . 7 4 . Best Kill Streak 4 | 1 4 3 . Combat Bots Only 3 | . 3 3 . Max Kills in Single Turn 3 | 1 2 3 . Gunslinging . | . . . . Exploded 3 | . 2 3 . Melee . | . . . . Uniques/NPCs Destroyed . | . . . . Combat | -11 -10 -10 -10 -------- Run | Yrd Mat Min Sub Hostile Shots Fired 99 | . 53 44 2 Missed 24 | . 12 11 1 Hits 75 | . 41 33 1 Projectile 75 | . 41 33 1 AOE 1 | . . . 1 Damage Taken 912 | . 423 432 57 Core 250 | . 90 122 38 Absorbed by Shields . | . . . . Regen/Repaired (Parts) 14 | . 14 . . Core Remaining (%) 100 | 100 . . . Volleys Fired 92 | 5 57 27 3 Largest 2 | 2 2 2 2 Hottest 110 | 90 110 110 110 Shots Fired 176 | 10 112 48 6 Gun 100 | 10 66 21 3 Cannon 68 | . 44 21 3 Launcher 8 | . 2 6 . Special . | . . . . Kinetic 1 | . . . 1 Thermal 167 | 10 110 42 5 Explosive 8 | . 2 6 . Electromagnetic . | . . . . Robot Hit Streak 22 | 2 22 17 4 Robot Miss Streak 7 | 4 7 3 2 Penetration Max . | . . . . Secondary Targets . | . . . . Shots Hit Robots 106 | 4 67 31 4 Core Hits 56 | 2 31 23 . Critical Kills . | . . . . Critical Parts Destroyed . | . . . . Critical Strikes 5 | . 4 1 . Burn 5 | . 4 1 . Melee Attacks . | . . . . Impact . | . . . . Slashing . | . . . . Piercing . | . . . . Sneak Attacks . | . . . . Combat Hostiles . | . . . . Follow-up Attacks . | . . . . Damage Inflicted 2289 | 49 1134 1044 62 Guns 807 | 49 518 213 27 Cannons 705 | . 457 213 35 Explosions 769 | . 159 610 . Melee . | . . . . Ramming 8 | . . 8 . Kinetic 15 | . . . 15 Thermal 1497 | 49 975 426 47 Explosive 769 | . 159 610 . Electromagnetic . | . . . . Impact . | . . . . Slashing . | . . . . Piercing . | . . . . Highest Corruption . | . . . . Average Corruption . | . . . . Corruption Purged . | . . . . Corruption Blocked . | . . . . Overload Shots . | . . . . Overflow Damage 37 | . . 37 . Projectiles . | . . . . Explosions 37 | . . 37 . Melee . | . . . . Knockbacks . | . . . . Impact . | . . . . Kinetic . | . . . . Secondary . | . . . . Self-Inflicted Damage 57 | . . 57 . Shots 3 | . . 3 . Rammed 1 | . . 1 . Targets Rammed 1 | . . 1 . Kicked . | . . . . Crushed . | . . . . Highest Temperature 225 | 120 225 156 . Average Temperature 56 | 60 57 51 . Received Heat Transfer 300 | . 150 150 . Siege Activations . | . . . . Martial Activations . | . . . . Shielding Activations . | . . . . Robots Disrupted . | . . . . Combat Hostiles . | . . . . Robots Corrupted . | . . . . Combat Hostiles . | . . . . Parts Fried . | . . . . Impact Corruptions . | . . . . Robots Melted 1 | . . 1 . Combat Hostiles 1 | . . 1 . Parts Melted 8 | 1 6 1 . Heat Transferred 4134 | 136 2740 1147 111 Parts Sabotaged . | . . . . Parts Stolen . | . . . . Parts Stripped . | . . . . Power Chain Reactions . | . . . . Alert | -11 -10 -10 -10 ------- Run | Yrd Mat Min Sub Maximum Alert Level . | . . . . Low Security (%) 100 | 100 100 100 . Level 1 . | . . . . Level 2 . | . . . . Level 3 . | . . . . Level 4 . | . . . . Level 5 . | . . . . High Security . | . . . . Max Security . | . . . . Peak Influence 199 | 5 158 199 . Initial 24 | . . 24 . Average 67 | . 59 77 . Influence Increases 904 | 5 433 466 . Destroy 0b10 Robot/C 520 | . 260 260 . Destroy 0b10 Robot/NC 60 | 5 35 20 . Destroy Leader 96 | . 46 50 . Successful Hack 44 | . 44 . . Disable Machine 75 | . 30 45 . Destroy Structure 64 | . 3 61 . Lose Combat Pursuer 45 | . 15 30 . Influence Decreases 904 | 5 369 512 18 Entered New Map 50 | . . 40 10 Time Decay 804 | 5 349 442 8 Lost Part 50 | . 20 30 . Squads Dispatched 2 | . 2 . . Investigation 1 | . 1 . . Extermination . | . . . . Reinforcement 1 | . 1 . . Assault . | . . . . Garrison . | . . . . Intercept . | . . . . Searches Triggered . | . . . . Construction Impeded . | . . . . Haulers Reinforced . | . . . . Active Scanning Responses . | . . . . Cargo Convoy Interrupts . | . . . . Stealth | -11 -10 -10 -10 --------- Run | Yrd Mat Min Sub Distress Signals 2 | . 2 . . Communications Jammed . | . . . . Distress Signals . | . . . . Times Spotted 34 | . 17 15 2 Peak Tracking Total 4 | . 4 3 1 Tactical Retreats 2 | . 1 1 . Traps | -11 -10 -10 -10 ------- Run | Yrd Mat Min Sub Traps Triggered . | . . . . Indirectly . | . . . . Trap Hack Attempts . | . . . . Triggered . | . . . . Disarmed . | . . . . Reprogrammed . | . . . . Reused . | . . . . Traps Extracted . | . . . . Installed . | . . . . Triggered . | . . . . Machines | -11 -10 -10 -10 ---------- Run | Yrd Mat Min Sub Machines Disabled 5 | . 2 3 . Max in Single Turn 2 | . 1 2 . Machines Repaired . | . . . . Machines Dismantled . | . . . . Machines Sabotaged . | . . . . Overloaded Fab Kills . | . . . . Hacking | -11 -10 -10 -10 --------- Run | Yrd Mat Min Sub Machines Accessed 10 | . 10 . . Terminals 7 | . 7 . . Fabricators . | . . . . Repair Stations 1 | . 1 . . Recycling Units 2 | . 2 . . Scanalyzers . | . . . . Garrison Access . | . . . . Total Hacks 35 | . 35 . . Successful 20 | . 20 . . Failed 15 | . 15 . . Catastrophic 1 | . 1 . . Database Lockouts . | . . . . Manual 23 | . 23 . . Terminals 26 | . 26 . . Fabricators . | . . . . Repair Stations 5 | . 5 . . Recycling Units 4 | . 4 . . Scanalyzers . | . . . . Garrison Access . | . . . . Terminal Hacks 9 | . 9 . . Robot Analysis 2 | . 2 . . Locate Traps 5 | . 5 . . Zone Layout 2 | . 2 . . Fabricator Hacks . | . . . . Repair Station Hacks 3 | . 3 . . Scan Component 2 | . 2 . . Repair 1 | . 1 . . Recycling Unit Hacks 1 | . 1 . . Retrieve Components 1 | . 1 . . Scanalyzer . | . . . . Garrison Access Hacks . | . . . . Unauthorized Hacks 7 | . 7 . . Terminals 7 | . 7 . . Botnet 2 | . 2 . . Skim 5 | . 5 . . Fabricators . | . . . . Repair Stations . | . . . . Recycling Units . | . . . . Scanalyzers . | . . . . Garrison Access . | . . . . Data Cores Recovered 1 | . 1 . . Used . | . . . . Hacking Detections 9 | . 9 . . Full Trace Events 2 | . 2 . . Feedback Events . | . . . . Feedback Blocked . | . . . . Robot Schematics Acquired . | . . . . Robots Built . | . . . . Authchips . | . . . . Time . | . . . . Total Robot Build Rating . | . . . . Part Schematics Acquired . | . . . . Parts Built . | . . . . Authchips . | . . . . Time . | . . . . Total Part Build Rating . | . . . . Part Studies Acquired . | . . . . Parts Repaired 1 | . 1 . . Time 13 | . 13 . . Parts Recycled . | . . . . Recycled Matter . | . . . . Retrieved Matter . | . . . . Retrieved Components 9 | . 9 . . Parts Scanalyzed . | . . . . Part Schematics Acquired . | . . . . Parts Damaged . | . . . . Bothacking | -11 -10 -10 -10 ------------ Run | Yrd Mat Min Sub Used RIF Installer . | . . . . Robots Hacked . | . . . . Non-combat . | . . . . Combat . | . . . . Robot Hacks Applied . | . . . . Relay Couplers Released . | . . . . Fabnet Peak Effective % . | . . . . Robots Rewired . | . . . . Allies Hacked . | . . . . Hacks Repelled . | . . . . Allies | -11 -10 -10 -10 -------- Run | Yrd Mat Min Sub Total Allies 1 | . . 1 . Largest Group 1 | . . 1 1 Highest-Rated Group 31 | . . 31 31 Highest-Rated Ally 31 | . . 31 31 Total Orders . | . . . . Ally Attacks 6 | . . . 6 Total Damage 84 | . . . 84 Kills 1 | . . . 1 Allies Corrupted . | . . . . Allies Melted . | . . . . Intel | -11 -10 -10 -10 ------- Run | Yrd Mat Min Sub Active Infowar (turns) 2 | . . 2 . Sensors 2 | . . 2 . Robot Analysis Total 2 | . 2 . . Derelict Logs Recovered 1 | . . 1 . Drone Launches . | . . . . Drone Recoveries . | . . . . Exploration | -11 -10 -10 -10 ------------- Run | Yrd Mat Min Sub Turns Passed 2392 | 68 980 1229 115 Spaces Moved 1352 | 41 622 634 55 Core 10 | 9 1 . . Treads . | . . . . Legs . | . . . . Wheels 1342 | 32 621 634 55 Hover . | . . . . Flight . | . . . . Fastest Speed 50 | 50 95 140 155 Average Speed 131 | 89 107 154 155 Slowest Speed 200 | 100 200 155 155 Overloaded Moves . | . . . . Propulsion Burnouts . | . . . . Robots Hopped . | . . . . Potential Cave-ins . | . . . . Cave-ins Triggered . | . . . . Exploration Rate (%) 51 | 4 97 99 4 Regions Visited 3 Branch Regions 2 Pre-discovered Areas . | . . . . Known Exits Taken . | . . . . Unknown Exits Taken 3 | 1 1 1 . Scrap Searched 3 | . . 1 2 Spaces Dug . | . . . . Terrain Destroyed 67 | . 1 66 . Melee . | . . . . Projectile . | . . . . AOE 67 | . 1 66 . Terrain Rammed . | . . . . Walls Destroyed . | . . . . Machines Disabled . | . . . . Actions | -11 -10 -10 -10 --------- Run | Yrd Mat Min Sub Total 1798 | 59 828 831 80 Wait 271 | 3 108 141 19 Move 1349 | 40 621 633 55 Hop . | . . . . Pick Up 35 | 4 18 13 . Fast Attach 13 | 7 4 1 1 Attach 8 | . 3 5 . Detach 4 | . 2 1 1 Swap 10 | . 4 6 . Drop 15 | . 11 3 1 Fire 92 | 5 57 27 3 Melee . | . . . . Ram 1 | . . 1 . Kick . | . . . . Crush . | . . . . Escape Stasis . | . . . . Rewire . | . . . . Trap . | . . . . Miscellaneous . | . . . . Route ------- -11/Scrapyard -10/Materials (discovered 5 exits: [*Mat x3] / [*Min x2]) -10/Mines (discovered 4 exits: [*Mat x2] / [*Exi] / [*Sub]) -10/Subcaves History --------- Turn | Location | Event 8 | -11/Scrapyard | Discovered new exit (range 15) 69 | -11/Scrapyard | Entered Materials 287 | -10/Materials | Discovered new exit (range 13) 305 | -10/Materials | Build established: Mutant 401 | -10/Materials | Discovered new exit (range 17) 599 | -10/Materials | Discovered new exit (range 16) 928 | -10/Materials | Discovered new exit (range 12) 928 | -10/Materials | Discovered new exit (range 4) 986 | -10/Materials | Repaired Heat Sink 1049 | -10/Materials | Entered Mines 1139 | -10/Mines | Deemed a non-threat by the Exiles lab entrance 1141 | -10/Mines | Discovered new exit (range 5) 1224 | -10/Mines | Core integrity fell below 50% 1324 | -10/Mines | Discovered new exit (range 11) 1494 | -10/Mines | YI-UF0 nonchalantly dropped a Grenade Launcher on the ground 1514 | -10/Mines | Assembled infested the area 1544 | -10/Mines | Learned location of 1 exit from Materials 1937 | -10/Mines | Discovered new exit (range 10) 2039 | -10/Mines | Core integrity fell below 20% 2080 | -10/Mines | Received a Mining Laser from a helpful Derelict 2107 | -10/Mines | Found a damaged Exp. Sensor Array with a note attached 2110 | -10/Mines | Found Prototype Device 2110 | -10/Mines | Identified Exp. Sensor Array 2137 | -10/Mines | Discovered new exit (range 10) 2278 | -10/Mines | Entered Subcaves 2278 | -10/Subcaves | Accompanied by 1 ally 2393 | -10/Subcaves | Destroyed by BO-UD5(R) with Subdweller Shrapnel Launcher Last Messages --------------- LOCATION=UNKNOWN AMBIENT_HEAT=-10 GOAL=ESCAPE 02282_ Acquired 14 matter. 02285_ Acquired 6 matter. 02329_ Searching scrap... 02329_ Found Piercing Trap. 02329_ Found Barrage Gun. 02329_ Found 32 Matter. 02333_ Subatomizers dissect the Barrage Gun. 02340_ Searching scrap... 02340_ Found Flamer. 02340_ Found 64 Matter. 02342_ OX-DSP(g): "You look like you can take it from here!" 02342_ OX-DSP(g) slips back into the shadows. 02345_ Dropped Grenade Launcher. 02346_ Acquired Barrage Gun. 02347_ Acquired 10 matter. 02358_ Subatomizers dissect the Disposable Heat Sink. 02374_ BO-UD5(R): "SUBHATE!" Map ----- +----------------------------------------------------+ | ?????????????????????????????????????????????????? | | ?????????????????????????????????????????????????? | | ?????????????????????????????????????????????????? | | ?????????????????????????????????????????????????? | | ?????????????????????????????????????????????????? | | ?????????????????????????????????????????????????? | | ?????????????????????????????????????????????????? | | ?????????????????????????????#???????????????????? | | ???????????????????????????? #???????????????????? | | ???????????????????????????? ???????????????????? | | ???????????????????????????? ???????????????????? | | ???????????????????????????? #???????????????????? | | ???????????????????????????? ##??????????????????? | | ??????????????????????####?? #??????????????????? | | ????????????????????### ##?% #??????????????????? | | ????????????????????# %% ## #??????????????????? | | ???????????????####?# # %#???????????????????? | | ??????????????## ### #???????????????????? | | ?????????####?# ##??????????????????? | | ?????????# ### % # #??????????????????? | | ?????????#]&#%#" ## ### ##??????????????????? | | ?????????##! %! ## # #??????????????????? | | ?????????#|&"##< # ###?????????????????? | | ?????????# %## ##????????????????? | | ?????????#### ##???????????????? | | ????????????# @R #???????????????? | | ????????????## ### #???????????????? | | ?????????????### #### #???????????????? | | ???????????????#### ##?# ##???????????????? | | ??????????????????#####?# ##????????????????? | | ???????????????????????# ##?????????????????? | | ??????????????????????# #??????????????????? | | ????????????????????? #??????????????????? | | ???????????????????? ??????????????????? | | ?????????????????? ?????????????????? | | ????????????????? ?????????????????? | | ????????????????" #######????????????????? | | ???????????????? "" ###???????????????????????? | | ???????????????? """#??????????????????????????? | | ???????????????? ???????????????????????????? | | ???????????????????? ????????????????????????????? | | ?????????????????????????????????????????????????? | | ?????????????????????????????????????????????????? | | ?????????????????????????????????????????????????? | | ?????????????????????????????????????????????????? | | ?????????????????????????????????????????????????? | | ?????????????????????????????????????????????????? | | ?????????????????????????????????????????????????? | | ?????????????????????????????????????????????????? | | ?????????????????????????????????????????????????? | +----------------------------------------------------+ Best States ------------- Heat Dissipation 39 Energy Generation 10 Energy Capacity 250 Matter Stores 300 Matter Capacity 300 Sight Range 16 Terrain Scan Density 10 Evasion (%) 50 Targeting Accuracy 5 Recoil Reduction 1 Item Schematics ----------------- None Robot Schematics ------------------ None Fabricated ------------ Nothing Repaired ---------- Heat Sink | 53% | -10/Materials Studied --------- None Alien Tech Used ----------------- None Achievements -------------- None Challenges ------------ None Game ------ Seed HellfireCooledShielding Manual? 0 Play Time 00:13:10 Cumulative 1582.9 hours Start 2025.10.21 @ 00:51:20 End 2025.10.21 @ 01:05:22 Sessions 1 Manual Loads 0 Difficulty Rogue Special Mode None Game No. 1121 Rogue 1081 Adventurer 40 Explorer 0 Win Type - Total 200 Types 86/10/74/2/2/4/16/2/1/3 Lore% 97 Gallery% 97 Achievement% 74 Wizard Run 0 Options --------- Layout 0 ASCII 0 Keyboard 0 Movement Numpad Keybinds 0 Fullscreen 0 Font 20/Terminus Map View 76x50 Zoom Use 0% Tactical HUD 1 Map Filters NONE Filters NONE Steam 1 RUN: 7eda0a19-fd79-4cd0-a252-d88c6b5f47f3